Cogmind - Beta 10.2 @@@ ROGUE MODE // 2020.11.24 @ 11:56:57 Player: ILikeMonsters1890 Result: Destroyed by S-10 Pest with Light Assault Rifle Performance ------------- Evolutions (0) 0 Regions Visited (2) 400 Robots Destroyed (16) 80 Value Destroyed (377) 377 Prototype IDs (0) 0 Alien Tech Used (0) 0 Bonus (0) 0 TOTAL SCORE: 857 Bonus ------- None Cogmind --------- Core Integrity 0/250 Matter 239/300 Energy 96/100 System Corruption 0% Temperature Cool (313) Movement Core (100) Ox1 Location -10/Mines Parts ------- > --- POWER (1) -------- (None) > --- PROPULSION (2) --- (None) > --- UTILITY (2) ------ Small Storage Unit Advanced Signal Interpreter > --- WEAPON (2) ------- (None) > --- INVENTORY (6) ---- Advanced Treads Large Battery (300) Structural Scanner Targeting Computer Propulsion Shielding Datajack Peak State ------------ > --- POWER ------------ Ion Engine > --- PROPULSION ------- Advanced Treads Wheel > --- UTILITY ---------- Small Storage Unit Advanced Signal Interpreter > --- WEAPON ----------- Heavy Particle Cannon Heavy Particle Cannon > --- INVENTORY -------- Large Battery Structural Scanner Targeting Computer Propulsion Shielding Datajack [Rating: 15] Favorites ----------- Power Light Ion Engine Engine Light Ion Engine Propulsion Wheel Treads Advanced Treads Leg Aluminum Leg Wheel Wheel Utility Structural Scanner Device Structural Scanner Storage Small Storage Unit Processor Advanced Signal Interpreter Protection Propulsion Shielding Weapon EM Pulse Gun Energy Gun EM Pulse Gun Energy Cannon Heavy Particle Cannon Launcher Grenade Launcher Build | -11 -10 -10 ------- Run | Scr Mat Min Slots Evolved . | . . . Power . | . . . Propulsion . | . . . Utility . | . . . Weapon . | . . . Parts Attached 19 | 4 4 11 Power 4 | 1 . 3 Engine 4 | 1 . 3 Core . | . . . Reactor . | . . . Propulsion 5 | 2 . 3 Treads 1 | . . 1 Leg 1 | . . 1 Wheel 3 | 2 . 1 Hover . | . . . Flight . | . . . Utility 4 | . 3 1 Device 1 | . 1 . Storage 1 | . 1 . Processor 1 | . . 1 Hackware . | . . . Protection 1 | . 1 . Artifact . | . . . Weapon 6 | 1 1 4 Energy Gun 3 | 1 . 2 Energy Cannon 2 | . . 2 Ballistic Gun . | . . . Ballistic Cannon . | . . . Launcher 1 | . 1 . Special Weapon . | . . . Impact Weapon . | . . . Slashing Weapon . | . . . Piercing Weapon . | . . . Special Melee Weapon . | . . . Unidentified Prototypes . | . . . Parts Lost 9 | . 3 6 Power 3 | . 1 2 Propulsion 3 | . 1 2 Utility . | . . . Weapon 3 | . 1 2 Highest Loss Streak 5 | . 2 5 Average Slot Usage (%) 78 | . 72 86 Engine 10 | . 10 10 Treads 2 | . . 5 Wheel 19 | . 21 15 Device 8 | . 9 6 Storage 7 | . 1 14 Processor 3 | . . 7 Protection 3 | . 5 . Energy Gun 12 | . 14 9 Energy Cannon 6 | . . 15 Launcher 4 | . 8 . Naked Turns . | . . . Heaviest Build 22 | 5 10 22 Greatest Support 22 | 20 20 22 Greatest Overweight (x) 2 | . . 2 Average Overweight (x) . | . . . Largest Inventory Capacity 6 | 4 6 6 Average Capacity 4 | 4 4 6 Most Carried 6 | 2 4 6 Average Carried 3 | . 2 4 Final Capacity 6 | 4 6 6 Final Carried 6 | . 3 6 Class Distribution -------------------- 100% | Mutant Dominant Class ---------------- Mutant | -10/Materials Mutant | -10/Mines Resources | -11 -10 -10 ----------- Run | Scr Mat Min Matter Collected 483 | 240 125 118 Remotely . | . . . Salvage Created 425 | 69 179 177 Parts 35 | 5 14 16 Haulers Intercepted . | . . . Recyclers Shooed . | . . . Parts Field Recycled . | . . . Retrieved Matter . | . . . Parts Self-Destructed . | . . . Prevented . | . . . Kills | -11 -10 -10 ------- Run | Scr Mat Min Combat Hostiles Destroyed 9 | 1 2 6 Guns 4 | 1 1 2 Cannons 4 | . . 4 AOE 1 | . 1 . Classes Destroyed 6 | 2 3 1 Builder 3 | . 2 1 Tunneler 1 | 1 . . Operator 2 | . 2 . Watcher 1 | . 1 . Swarmer 3 | . . 3 Grunt 6 | 1 2 3 Best Kill Streak 4 | 2 4 3 Combat Bots Only 3 | 1 2 3 Max Kills in Single Turn 1 | 1 1 1 Gunslinging . | . . . Exploded 1 | . 1 . Melee . | . . . Uniques/NPCs Destroyed . | . . . Combat | -11 -10 -10 -------- Run | Scr Mat Min Damage Taken 799 | 34 156 609 Core 253 | 12 16 225 Absorbed by Shields . | . . . Core Remaining (%) 95 | 95 . . Volleys Fired 41 | 5 16 20 Largest 2 | 1 2 2 Hottest 150 | 40 70 150 Shots Fired 61 | 5 26 30 Gun 27 | 5 16 6 Cannon 24 | . . 24 Launcher 10 | . 10 . Special . | . . . Kinetic . | . . . Thermal 24 | . . 24 Explosive 10 | . 10 . Electromagnetic 27 | 5 16 6 Robot Hit Streak 7 | 5 7 7 Robot Miss Streak 8 | . 2 8 Penetration Max . | . . . Secondary Targets . | . . . Shots Hit Robots 25 | 5 7 13 Core Hits 26 | 3 11 12 Critical Hits . | . . . Critical Kills . | . . . Critical Parts Destroyed . | . . . Melee Attacks . | . . . Impact . | . . . Slashing . | . . . Piercing . | . . . Sneak Attacks . | . . . Combat Hostiles . | . . . Follow-up Attacks . | . . . Damage Inflicted 831 | 63 408 360 Guns 252 | 63 108 81 Cannons 275 | . . 275 Explosions 300 | . 300 . Melee . | . . . Ramming 4 | . . 4 Kinetic . | . . . Thermal 312 | . 37 275 Explosive 263 | . 263 . Electromagnetic 252 | 63 108 81 Impact . | . . . Slashing . | . . . Piercing . | . . . Highest Corruption . | . . . Average Corruption . | . . . Corruption Purged . | . . . Overload Shots . | . . . Overflow Damage 15 | . 10 5 Projectiles 5 | . . 5 Explosions 10 | . 10 . Melee . | . . . Knockbacks . | . . . Impact . | . . . Kinetic . | . . . Secondary . | . . . Self-Inflicted Damage 127 | . 126 1 Shots 6 | . 6 . Rammed 3 | . . 3 Targets Rammed 3 | . . 3 Kicked . | . . . Crushed . | . . . Highest Temperature 503 | 12 50 503 Average Temperature 169 | 10 18 253 Received Heat Transfer 132 | 18 18 96 Effects 4 | . . 4 Shutdowns 1 | . . 1 Energy Bleed 1 | . . 1 Matter Decay 2 | . . 2 Siege Activations . | . . . Robots Corrupted . | . . . Combat Hostiles . | . . . Parts Fried . | . . . Impact Corruptions . | . . . Robots Melted . | . . . Combat Hostiles . | . . . Parts Melted . | . . . Heat Transferred 457 | . 50 407 Parts Sabotaged . | . . . Parts Stolen . | . . . Parts Stripped . | . . . Power Chain Reactions 1 | . 1 . Missiles Intercepted . | . . . Alert | -11 -10 -10 ------- Run | Scr Mat Min Peak Influence 213 | 25 181 213 Initial 68 | . 16 68 Average 97 | 4 99 128 Maximum Alert Level 1 | . . 1 Low Security (%) 98 | 100 100 96 Level 1 1 | . . 3 Level 2 . | . . . Level 3 . | . . . Level 4 . | . . . Level 5 . | . . . High Security . | . . . Max Security . | . . . Squads Dispatched 1 | . 1 . Investigation . | . . . Extermination . | . . . Reinforcement 1 | . 1 . Assault . | . . . Garrison . | . . . Intercept . | . . . Construction Impeded . | . . . Haulers Reinforced . | . . . Stealth | -11 -10 -10 --------- Run | Scr Mat Min Distress Signals 1 | . 1 . Communications Jammed . | . . . Distress Signals . | . . . Times Spotted 23 | 1 12 10 Peak Tracking Total 7 | 1 7 6 Tactical Retreats 1 | . . 1 Traps | -11 -10 -10 ------- Run | Scr Mat Min Traps Triggered 2 | . . 2 Indirectly . | . . . Trap Hack Attempts . | . . . Triggered . | . . . Disarmed . | . . . Reprogrammed . | . . . Reused . | . . . Traps Extracted . | . . . Installed . | . . . Triggered . | . . . Machines | -11 -10 -10 ---------- Run | Scr Mat Min Machines Disabled 6 | . 6 . Max in Single Turn 2 | . 2 . Machines Sabotaged . | . . . Garrisons Compromised . | . . . Overloaded Fab Kills . | . . . Fab Network Shutdowns . | . . . Hacking | -11 -10 -10 --------- Run | Scr Mat Min Machines Accessed 4 | . 3 1 Terminals 2 | . 2 . Fabricators . | . . . Repair Stations . | . . . Recycling Units 1 | . 1 . Scanalyzers . | . . . Garrison Access . | . . . Total Hacks 11 | . 10 1 Successful 11 | . 10 1 Failed . | . . . Catastrophic . | . . . Database Lockouts . | . . . Manual . | . . . Terminals 6 | . 6 . Fabricators . | . . . Repair Stations . | . . . Recycling Units 4 | . 4 . Scanalyzers . | . . . Garrison Access . | . . . Terminal Hacks 7 | . 6 1 Record 4 | . 4 . Robot Analysis 1 | . 1 . Open Door 1 | . . 1 Zone Layout 1 | . 1 . Fabricator Hacks . | . . . Repair Station Hacks . | . . . Recycling Unit Hacks 4 | . 4 . Process 1 | . 1 . Report Inventory 1 | . 1 . Retrieve Matter 1 | . 1 . Retrieve Components 1 | . 1 . Scanalyzer . | . . . Garrison Access Hacks . | . . . Unauthorized Hacks . | . . . Terminals . | . . . Fabricators . | . . . Repair Stations . | . . . Recycling Units . | . . . Scanalyzers . | . . . Garrison Access . | . . . Data Cores Recovered 1 | . 1 . Used 1 | . 1 . Hacking Detections 1 | . 1 . Full Trace Events . | . . . Feedback Events . | . . . Feedback Blocked . | . . . Robot Schematics Acquired . | . . . Robots Built . | . . . Matter . | . . . Time . | . . . Total Robot Build Rating . | . . . Part Schematics Acquired . | . . . Parts Built . | . . . Matter . | . . . Time . | . . . Total Part Build Rating . | . . . Parts Repaired . | . . . Time . | . . . Parts Recycled . | . . . Recycled Matter . | . . . Retrieved Matter . | . . . Retrieved Components . | . . . Parts Scanalyzed . | . . . Part Schematics Acquired . | . . . Parts Damaged . | . . . Bothacking | -11 -10 -10 ------------ Run | Scr Mat Min Used RIF Installer . | . . . Robots Hacked . | . . . Non-combat . | . . . Combat . | . . . Robot Hacks Applied . | . . . Relay Couplers Released . | . . . Robots Rewired . | . . . Allies Hacked . | . . . Hacks Repelled . | . . . Allies | -11 -10 -10 -------- Run | Scr Mat Min Total Allies . | . . . Largest Group . | . . . Highest-Rated Group . | . . . Highest-Rated Ally . | . . . Total Orders . | . . . Ally Attacks . | . . . Total Damage . | . . . Kills . | . . . Allies Corrupted . | . . . Allies Melted . | . . . Intel | -11 -10 -10 ------- Run | Scr Mat Min Robot Analysis Total 1 | . 1 . Derelict Logs Recovered 1 | . . 1 Drone Launches . | . . . Drone Recoveries . | . . . Exploration | -11 -10 -10 ------------- Run | Scr Mat Min Turns Passed 518 | 69 250 199 Spaces Moved 425 | 71 245 109 Core 22 | 18 . 4 Treads 31 | . . 31 Legs . | . . . Wheels 372 | 53 245 74 Hover . | . . . Flight . | . . . Fastest Speed 50 | 50 80 80 Average Speed 85 | 72 80 106 Slowest Speed 150 | 80 80 150 Overloaded Moves . | . . . Propulsion Burnouts . | . . . Robots Hopped . | . . . Cave-ins Triggered . | . . . Exploration Rate (%) 27 | 6 45 30 Regions Visited 2 Branch Regions 1 Pre-discovered Areas 1 | . . 1 Known Exits Taken . | . . . Unknown Exits Taken 2 | 1 1 . Scrap Searched 1 | . . 1 Spaces Dug . | . . . Terrain Destroyed 74 | . 61 13 Melee . | . . . Projectile 13 | . . 13 AOE 61 | . 61 . Terrain Rammed . | . . . Walls Destroyed . | . . . Machines Disabled . | . . . Actions | -11 -10 -10 --------- Run | Scr Mat Min Total 522 | 83 273 166 Wait 1 | . . 1 Move 423 | 70 244 109 Hop . | . . . Pick Up 26 | 4 7 15 Fast Attach . | . . . Attach 19 | 4 4 11 Detach 2 | . 1 1 Swap . | . . . Drop 7 | . 1 6 Fire 41 | 5 16 20 Melee . | . . . Ram 2 | . . 2 Kick . | . . . Crush 1 | . . 1 Escape Stasis . | . . . Rewire . | . . . Trap . | . . . Miscellaneous . | . . . Route ------- -11/Scrapyard -10/Materials -10/Mines History --------- Turn | Location | Event 2 | -11/Scrapyard | Met Revision 17 43 | -11/Scrapyard | Discovered new exit (range 8) 70 | -11/Scrapyard | Entered Materials 289 | -10/Materials | Discovered new exit (range 5) 314 | -10/Materials | Build established: Mutant 320 | -10/Materials | Entered Mines 348 | -10/Mines | Learned location of Zion (-7) 387 | -10/Mines | Met a Derelict who couldn't figure out how to use a Trap Extractor 498 | -10/Mines | Core integrity fell below 50% 509 | -10/Mines | Core integrity fell below 20% 519 | -10/Mines | Destroyed by S-10 Pest with Light Assault Rifle Last Messages --------------- Acquired Ion Engine. U-05 Engineer builds a Wall. Acquired Datajack. Wheel destroyed. U-05 Engineer builds a Wall. [Achievement: Storm Trooper] S-10 Pest destroyed. U-05 Engineer builds a Wall. S-10 Pest destroyed. Hvy. Particle Cannon destroyed. S-10 Pest destroyed. Power failure, Ion Engine shutdown. U-05 Engineer builds a Wall. Hvy. Particle Cannon destroyed. Wheel destroyed. Ion Engine destroyed. U-05 Engineer builds a Wall. Overheating: Energy bleed (-13). Slammed into S-10 Pest. [Achievement: First Step to Greatness] Map ----- +----------------------------------------------------+ | ???????????????????????# #????????????? | | ??????????????????????##=%##???????????? | | ?????????????????????## [* ##??????????? | | ???????????????# ##### !% ### #??????? | | ???????????????# #??????? | | ???????????????###### ######??????? | | ????????????????????## # #??????????## | | ?????????????????????#### ############ | | ????????????????????????# | | ????????????????????????# | | ????????????????????????############## | | ?????????????????????????????????????# | | ????????????????????????????????????## | | ??????????????????????????????####### | | ?????????????????????????????##""## | | ?????????????????????????????#" / # | | ?????????????????????????????#"[ ! | | ?????????#???????????????????#"! | | ????????## ??????????#####???#" #X | | ????????# ?????????## ##??## ## | | ????????# ???????## ###?# ### | | ?????????# ?????## ######?# | | ??????????# g???## #?????## | | ???????????# #### #??????### | | ??????????## s; #????????#! | | ??????????#; @ s ##????##### | | ??????????## [%s ## ###????## ## | | ???????????# =% u#### ######## | | ????????? ;;###?#" ! ! ! | | ????????###;%=###???## = [ ### | | ??????????## ### #### ###?# | | ???????????# ?#### ### ## #?## #???? | | ??????????? ?????#???## ### #??# #???? | | ?????????? ??????????####?# #?? ???? | | ?????????"" ???????????????# #?? ???? | | ????????""" ????????????????# ??"""???? | | ??????????" ????????????????###??"""???? | | ?????????? ??????????????????????"""???? | | ??????????#?????????????????????? ???? | | ???????????????????????????????????????? | | ???????????????????????????????????????? | | ???????????????????????????????????????? | | ???????????????????????????????????????? | | ???????????????????????????????????????? | | | | | | | | | | | | | +----------------------------------------------------+ Best States ------------- Heat Dissipation 25 Energy Generation 10 Energy Capacity 250 Matter Stores 300 Matter Capacity 300 Sight Range 16 Terrain Scan Density 10 Propulsion Shielding 33 Evasion (%) 50 Recoil Reduction 1 Item Schematics ----------------- None Robot Schematics ------------------ None Fabricated ------------ Nothing Alien Tech Used ----------------- None Achievements -------------- Dynamic Key First Step to Greatness Let's See Who's Tougher Storm Trooper Uninvited Guest Challenges ------------ None Game ------ Seed SkeletonCoolingCasing Manual? 0 Play Time 00:38:29 Cumulative 1.2 hours Start 2020.11.24 @ 10:22:26 End 2020.11.24 @ 11:56:57 Sessions 1 Manual Loads 0 Difficulty Rogue Special Mode None Game No. 1 Rogue 1 Adventurer 0 Explorer 0 Win Type - Total 0 Types 0/0/0/0/0/0/0/0/0 Lore% 0 Gallery% 1 Achievement% 1 Wizard Run 0 Options --------- ASCII 0 Keyboard 0 Movement Numpad Keybinds 0 Fullscreen 1 Font 18/SmallcapsGlow Map View 76x50 Tactical HUD 0 Map Filters NONE Filters NONE Steam 1 RUN: 33638a25-4bec-469d-a54e-a97a96a3043b